bitfinex/quotes_ETHUSD_20251212
["timestamp","ask_amount","ask_price","bid_price","bid_amount"]
[1765521119245,0.002,3259.9,3259.6,6.88434835]
[1765521120331,0.002,3259.9,3259.6,3.81648727]
[1765521120651,0.4862,3259.7,3259.6,0.12278884]
[1765521120858,0.4862,3259.7,3259.0,3.06841397]
[1765521121059,0.4703,3259.6,3259.3,0.92105768]
[1765521121390,0.485,3259.5,3259.3,0.92105768]
[1765521122928,0.2005,3259.9,3259.3,0.92105768]
[1765521123139,0.485,3259.8,3259.4,3.06804933]
[1765521123648,0.485,3259.7,3259.4,3.06804933]
[1765521124022,0.485,3259.7,3259.3,3.98915954]
[1765521124345,0.485,3259.7,3259.3,3.06813003]
[1765521124719,0.485,3259.7,3259.4,0.92105768]
[1765521125239,0.485,3259.7,3259.4,3.98909026]
[1765521126056,0.485,3259.7,3259.4,0.92105768]
[1765521126569,0.485,3259.6,3259.4,3.98910624]
[1765521127265,0.485,3259.5,3259.4,3.77377177]
[1765521127430,0.485,3259.6,3259.5,0.92100395]
[1765521127632,0.002,3259.9,3259.5,0.92100395]
[1765521127633,0.485,3259.7,3259.5,0.92100395]
[1765521130556,0.9565,3259.6,3259.5,0.92100395]
[1765521130749,0.9565,3259.6,3258.5,0.93125771]
[1765521130943,0.4862,3259.3,3259.0,3.06836244]
[1765521131167,0.4703,3259.5,3259.0,3.68205366]
[1765521131366,0.4703,3259.5,3259.1,0.92108878]
[1765521132062,0.9553,3259.7,3259.1,0.92108878]
[1765521132270,4.02309692,3259.7,3259.1,0.92108878]
[1765521132558,0.9553,3259.7,3259.1,0.92108878]
[1765521132765,0.9553,3259.7,3259.2,3.0682376]
[1765521133132,4.02310426,3259.7,3259.2,3.0682376]
[1765521133331,0.4535,3259.6,3259.3,0.92108878]
[1765521134363,0.654,3259.9,3259.3,0.92108878]
[1765521134566,0.485,3259.5,3259.3,0.92108878]
[1765521134870,0.4556,3259.4,3259.3,0.92108878]
[1765521135166,0.9091,3259.4,3259.3,0.92108878]
[1765521136968,0.9091,3259.4,3259.0,3.06839256]
[1765521137263,0.4535,3259.3,3259.1,0.92115383]
[1765521137870,0.4556,3259.2,3259.1,0.92115383]
[1765521140650,0.4556,3259.2,3259.1,3.98948557]
[1765521140876,0.485,3259.5,3259.1,7.05781731]
[1765521141047,0.485,3259.5,3259.1,3.98948557]
[1765521141375,0.485,3259.4,3259.1,3.06833174]
[1765521141563,0.485,3259.4,3259.2,0.485]
[1765521142481,0.9385,3259.4,3259.2,0.485]
[1765521142677,0.485,3259.4,3259.2,0.485]
[1765521143558,0.4839,3259.3,3259.2,0.485]
[1765521143944,0.9845,3259.4,3259.2,0.485]
[1765521144370,0.4839,3259.3,3259.2,0.485]
[1765521144573,0.9689,3259.3,3259.2,0.485]
[1765521146178,0.485,3259.3,3259.2,3.5532376]
[1765521146686,0.485,3259.3,3259.2,0.485]
[1765521146853,0.9689,3259.3,3259.2,0.485]
[1765521147255,1.4684,3259.3,3259.2,0.485]
[1765521150784,4.53654346,3259.3,3259.2,0.485]
[1765521150983,5.29699333,3259.3,3259.2,0.485]
[1765521151157,5.29699333,3259.3,3258.6,3.06879289]
[1765521151360,0.4995,3259.2,3258.6,3.06879289]
[1765521151798,0.4995,3259.2,3258.4,3.06897704]
[1765521152099,0.4995,3259.2,3258.0,0.61216896]
[1765521152308,0.4995,3259.2,3258.5,0.92128962]
[1765521152879,3.56780306,3259.2,3258.6,3.06880255]
[1765521153387,0.4995,3259.1,3258.6,3.06880255]
[1765521153587,0.4995,3259.1,3258.7,0.92128962]
[1765521153889,0.4995,3259.1,3258.8,0.03068614]
[1765521154588,3.06816772,3259.3,3258.8,0.03068614]
[1765521154882,0.485,3259.0,3258.8,0.03068614]
[1765521155280,0.485,3259.0,3258.7,3.98995264]
[1765521155467,0.485,3259.0,3258.8,0.03068614]
[1765521156162,0.4839,3258.9,3258.7,0.92128962]
[1765521156756,0.9834,3258.9,3258.7,0.92128962]
[1765521157565,0.485,3258.8,3258.7,0.92128962]
[1765521158571,0.9689,3258.8,3258.7,0.92128962]
[1765521158962,0.9689,3258.8,3258.7,3.989998]
[1765521158963,0.485,3258.8,3258.7,3.989998]
[1765521159661,0.485,3258.8,3258.7,4.72656496]
[1765521160286,0.485,3258.8,3258.7,4.69587788]
[1765521160783,0.485,3258.9,3258.7,4.69587788]
[1765521161189,0.485,3258.9,3258.7,3.77458826]
[1765521161374,0.485,3258.9,3258.8,0.92123586]
[1765521162370,0.485,3258.9,3258.7,3.77458826]
[1765521162572,0.485,3258.9,3258.8,3.06861421]
[1765521165595,0.4995,3259.3,3258.8,3.06861421]
[1765521165795,0.485,3259.2,3258.8,3.06861421]
[1765521167190,0.485,3259.1,3258.8,3.06861421]
[1765521167396,0.485,3259.0,3258.8,3.06861421]
[1765521168297,0.485,3259.0,3258.7,3.06867105]
[1765521168494,0.485,3259.0,3258.6,3.06874176]
[1765521168700,0.98,3259.0,3258.3,6.1381702]
[1765521168900,0.98,3259.0,3258.4,0.67186455]
[1765521172394,0.495,3259.5,3258.5,6.13779346]
[1765521172596,0.485,3259.4,3258.5,6.13779346]
[1765521173092,0.495,3259.3,3258.5,6.13779346]
[1765521173493,0.485,3259.2,3258.5,6.13779346]
[1765521173685,0.485,3259.2,3258.6,0.6809658]
[1765521174286,0.98,3259.2,3258.6,0.6809658]
[1765521174512,0.98,3259.2,3258.7,3.06870838]
[1765521174703,0.495,3259.1,3258.7,3.06870838]
[1765521175219,0.4602,3258.8,3258.6,3.0687691]
[1765521175985,0.495,3259.0,3258.6,3.0687691]
[1765521176217,0.495,3259.0,3258.6,3.68254328]
[1765521178091,0.495,3259.0,3258.6,0.61377418]
[1765521178287,0.1957,3258.9,3258.5,3.06886632]
[1765521178492,0.1957,3258.9,3258.6,3.06880254]
[1765521178692,0.6907,3258.9,3258.6,3.06880254]
[1765521180120,0.6907,3258.9,3258.3,6.1381702]
[1765521180412,3.56335159,3259.1,3258.3,6.1381702]
[1765521180612,0.495,3259.0,3258.4,0.61381702]
[1765521182221,0.1957,3258.9,3258.5,3.06889673]
[1765521182625,0.495,3259.1,3258.5,6.13779346]
[1765521183622,0.495,3259.1,3258.5,3.06889673]
[1765521184822,3.56339957,3259.1,3258.5,3.06889673]
[1765521185224,3.55328436,3259.2,3258.5,3.74406514]
[1765521185410,0.495,3259.0,3258.5,3.74406514]
[1765521186934,0.4602,3258.6,3258.5,0.67516841]
[1765521187144,0.485,3258.8,3258.5,3.06889673]
[1765521187999,0.485,3258.8,3258.5,6.13779346]
[1765521189044,3.0682983,3259.2,3258.2,6.71883389]
[1765521189337,0.485,3259.1,3258.2,9.78801319]
[1765521189518,0.485,3259.1,3258.3,1.54388119]
[1765521189817,0.485,3259.1,3258.4,0.0306899]
[1765521190220,0.485,3259.0,3258.4,0.0306899]
[1765521192135,0.485,3259.0,3258.5,6.13779346]
[1765521192516,0.98,3259.0,3258.5,6.13779346]
[1765521192824,0.98,3259.0,3258.5,3.06889673]
[1765521193022,0.485,3259.0,3258.5,3.06889673]
[1765521193233,0.9404,3258.9,3258.5,3.06889673]
[1765521193409,0.4554,3258.9,3258.5,3.06889673]
[1765521193610,0.9404,3258.9,3258.5,3.06889673]
[1765521194238,0.485,3258.9,3258.5,0.46127779]
[1765521194808,0.9404,3258.9,3258.5,0.46127779]
[1765521195125,0.9404,3258.9,3258.4,3.06899075]
[1765521195325,0.9404,3258.9,3258.4,6.13798166]
[1765521195634,0.9404,3258.9,3258.4,3.06899075]
[1765521195808,0.4554,3258.8,3258.4,6.13798166]
[1765521196342,0.4554,3258.8,3258.3,3.06905586]
[1765521196513,0.4554,3258.8,3258.3,6.13814096]
[1765521196714,0.4554,3258.8,3258.3,6.81000259]
[1765521198516,0.485,3258.9,3258.3,6.81000259]
[1765521201109,0.4554,3259.1,3258.3,6.81000259]
[1765521201314,0.485,3258.9,3258.3,6.81000259]
[1765521201616,0.485,3258.9,3258.3,12.46080133]
[1765521201811,0.485,3258.9,3258.4,1.24608013]
[1765521202015,0.485,3258.9,3258.4,1.27677003]
[1765521202452,0.485,3258.9,3258.4,1.24608013]
[1765521204148,0.485,3258.9,3258.5,6.13779346]
[1765521206055,0.485,3258.9,3258.5,3.06889673]
[1765521206056,0.9404,3258.9,3258.5,3.06889673]
[1765521206668,0.9404,3258.9,3258.5,6.13779346]
[1765521206954,0.9404,3258.9,3258.5,3.06889673]
[1765521208239,0.47,3258.8,3258.5,3.06889673]
[1765521210261,0.47,3258.8,3258.5,6.13779346]
[1765521210458,0.485,3258.9,3258.5,6.13779346]
[1765521210656,0.47,3258.8,3258.5,6.13779346]
[1765521211359,0.485,3258.9,3258.5,6.13779346]
[1765521211591,0.485,3258.9,3258.5,6.75157281]
[1765521219389,0.47,3259.1,3258.5,6.75157281]
[1765521219558,0.485,3259.0,3258.5,6.75157281]
[1765521220363,0.955,3259.0,3258.5,6.75157281]
[1765521220795,0.47,3259.0,3258.5,6.75157281]
[1765521220966,0.955,3259.0,3258.5,6.75157281]
[1765521223497,0.1957,3259.3,3258.6,1.2402801]
[1765521223803,0.485,3259.0,3258.6,1.2402801]
[1765521224370,0.485,3259.0,3258.7,0.9212104]
[1765521224607,0.4756,3258.9,3258.7,0.9212104]
[1765521224772,0.4932,3258.8,3258.7,0.9212104]
[1765521225171,0.9688,3258.8,3258.7,0.9212104]
[1765521227498,7.10602842,3258.8,3258.0,0.001]
[1765521227675,0.4932,3258.1,3258.0,0.92246506]
[1765521227872,0.9782,3258.1,3258.0,0.92246506]
[1765521228084,1.4538,3258.1,3258.0,0.92246506]
[1765521231605,4.5230735,3258.1,3258.0,0.92246506]
[1765521232179,4.5230735,3258.1,3258.0,0.001]
[1765521232380,5.2822898,3258.1,3258.0,0.001]
[1765521232782,2.2130163,3258.1,3258.0,0.001]
[1765521233005,0.9688,3258.1,3258.0,0.001]
[1765521233299,1.4538,3258.1,3258.0,0.001]
[1765521235828,0.4932,3258.1,3258.0,0.001]
[1765521236125,1.4538,3258.1,3258.0,0.001]
[1765521236431,1.4538,3258.1,3258.0,0.92245091]
[1765521241400,4.5230735,3258.1,3258.0,0.001]
[1765521241606,4.97536657,3258.1,3258.0,0.001]
[1765521242010,0.7635,3258.0,3257.9,0.42155281]
[1765521242208,0.7635,3258.0,3257.7,0.001]
[1765521242514,0.6804,3257.8,3257.7,0.001]
[1765521242808,3.74995614,3257.8,3257.7,0.001]
[1765521243028,4.22555614,3257.8,3257.7,0.001]
[1765521244412,1.156,3257.8,3257.7,0.001]
[1765521244607,4.71055614,3257.8,3257.7,0.001]
[1765521244812,5.39080929,3257.8,3257.7,0.001]
[1765521247342,5.8133621,3257.8,3257.7,0.001]
[1765521251859,5.3283621,3257.8,3257.7,0.001]
[1765521252031,5.8133621,3257.8,3257.7,0.001]
[1765521253928,0.2983,3257.2,3256.7,0.001]
[1765521254133,20.29267672,3257.8,3256.3,0.12391146]
[1765521254134,0.4859,3256.6,3256.3,0.12391146]
[1765521254357,0.4879,3256.4,3255.6,0.4903]
[1765521254731,0.957,3256.3,3255.6,0.4903]
[1765521254927,0.4879,3256.4,3255.6,0.84650248]
[1765521255174,0.485,3256.3,3255.6,0.84650248]
[1765521255373,0.485,3256.3,3256.0,0.001]
[1765521255575,0.472,3256.2,3256.0,0.001]
[1765521255870,0.4879,3256.1,3256.0,0.001]
[1765521256276,0.9599,3256.1,3256.0,0.001]
[1765521257874,1.88204201,3256.1,3256.0,0.001]
[1765521258182,4.95320075,3256.1,3256.0,0.001]
[1765521258499,1.88204201,3256.1,3256.0,0.001]
[1765521258989,0.485,3256.1,3256.0,0.4894]
[1765521259290,1.4449,3256.1,3256.0,0.001]
[1765521259978,0.92207682,3256.3,3256.0,0.4894]
[1765521260158,3.07059293,3256.7,3256.2,0.4884]
[1765521260360,1.85772864,3256.6,3256.0,0.001]
[1765521260771,0.4817,3256.1,3256.0,0.001]
[1765521260949,0.9667,3256.1,3256.0,0.001]
[1765521264383,0.9667,3256.1,3256.0,0.92302864]
[1765521264559,0.485,3256.1,3256.0,0.92302864]
[1765521265276,0.9667,3256.1,3256.0,0.92302864]
[1765521268290,0.485,3256.1,3256.0,0.92302864]
[1765521268479,0.485,3256.1,3256.0,1.38132864]
[1765521268792,0.485,3256.1,3256.0,4.45256978]
[1765521269789,0.9667,3256.1,3256.0,0.92302864]
[1765521271588,0.9667,3256.1,3256.0,3.98938171]
[1765521272399,0.485,3256.1,3256.0,3.98938171]
[1765521273373,0.485,3256.1,3256.0,4.90748171]
[1765521273574,0.485,3256.1,3256.0,5.70535819]
[1765521273793,0.485,3256.1,3256.0,5.24555819]
[1765521274192,0.9667,3256.1,3256.0,4.78725819]
[1765521274500,0.9667,3256.1,3256.0,0.91812864]
[1765521275770,0.9667,3256.1,3256.0,3.98938171]
[1765521275987,0.9667,3256.1,3256.0,0.91812864]
[1765521278605,0.485,3256.1,3256.0,4.44768171]
[1765521279211,1.03117529,3257.5,3256.0,13.63570569]
[1765521279504,0.92194364,3257.3,3256.3,0.4583]
[1765521279697,1.50241893,3257.3,3256.3,0.4583]
[1765521280008,1.50241893,3257.3,3256.3,0.9181]
[1765521280305,0.71706645,3257.4,3256.4,11.79872253]
[1765521280505,0.485,3257.3,3256.4,12.25852253]
[1765521280680,0.485,3257.3,3256.4,13.18038118]
[1765521281604,0.485,3257.3,3256.5,0.4598]
[1765521282726,0.4507,3257.5,3256.6,6.14137442]
[1765521282894,0.485,3257.4,3256.6,6.14137442]
[1765521283092,0.485,3257.4,3256.6,6.59987442]
[1765521283600,0.485,3257.3,3256.6,6.59987442]
[1765521283797,3.52055002,3257.5,3256.6,8.00327012]
[1765521283994,0.485,3257.2,3256.6,8.00327012]
[1765521284597,3.06999253,3257.4,3257.1,0.4736]
[1765521284913,0.485,3257.3,3256.6,3.52918721]
[1765521285108,0.485,3257.3,3256.6,6.59987442]
[1765521285314,0.485,3257.3,3256.6,7.25986186]
[1765521286905,0.485,3257.2,3256.6,7.25986186]
[1765521289723,0.4877,3256.7,3255.7,0.92280766]
[1765521289897,0.2968,3256.4,3255.7,0.001]
[1765521290096,0.2968,3256.4,3255.7,6.14405399]
[1765521290298,0.7782,3256.4,3255.7,3.07251792]
[1765521290620,3.84910641,3256.4,3255.7,0.001]
[1765521291624,0.4814,3256.3,3255.7,0.001]
[1765521291789,0.485,3256.2,3255.7,0.001]
[1765521293204,0.9664,3256.2,3255.7,0.001]
[1765521294802,0.485,3256.2,3255.7,0.001]
[1765521295526,3.55230044,3256.4,3255.7,0.001]
[1765521295726,0.485,3256.3,3255.7,0.001]
[1765521296423,0.4814,3256.4,3255.7,0.69199144]
[1765521296629,0.485,3256.3,3255.7,0.66127608]
[1765521296827,3.07063181,3256.7,3255.8,0.4585]
[1765521297011,0.485,3256.6,3256.2,0.4736]
[1765521298125,3.07053244,3256.8,3256.2,0.6406]
[1765521298325,0.485,3256.5,3256.2,0.4736]
[1765521300603,0.485,3256.5,3256.2,3.54466396]
[1765521301015,0.485,3256.5,3256.2,6.61572839]
[1765521301214,3.07044054,3256.9,3256.4,0.4736]
[1765521301544,0.485,3256.8,3256.4,0.4736]
[1765521301908,0.485,3256.7,3256.4,0.4736]
[1765521302109,0.485,3256.6,3256.4,0.4736]
[1765521302500,0.485,3256.6,3256.5,0.4736]
[1765521302708,3.0702599,3257.1,3256.5,3.54438151]
[1765521302934,0.67207866,3257.1,3257.0,0.4736]
[1765521303103,1.4541,3257.1,3256.5,3.07078151]
[1765521303509,0.9691,3257.1,3256.5,3.07078151]
[1765521303711,3.25882745,3257.8,3257.0,0.4736]
[1765521303712,0.6706,3257.8,3257.0,0.4736]
[1765521304026,0.002,3258.3,3256.5,6.14156302]
[1765521304027,0.485,3257.7,3257.2,0.4736]
[1765521304411,0.58047529,3258.1,3257.6,0.4736]
[1765521304611,0.485,3257.9,3257.6,3.54327199]
[1765521306135,0.3671675,3258.0,3257.6,0.4736]
[1765521306136,0.002,3258.0,3257.6,0.4736]
[1765521306336,0.485,3257.8,3257.6,3.54333776]
[1765521306915,0.485,3257.8,3257.7,0.4736]
[1765521307732,0.002,3258.0,3257.7,0.4736]
[1765521307934,0.002,3258.0,3257.9,0.4736]
[1765521308131,0.487,3258.0,3257.9,0.4736]
[1765521308723,4.52551486,3258.0,3257.4,3.06993091]
[1765521308944,0.2946,3257.7,3257.2,3.0700969]
[1765521309239,0.2946,3257.7,3257.3,0.58047529]
[1765521309834,0.2946,3257.7,3257.3,1.03897529]
[1765521310145,0.6729,3257.9,3257.3,1.03897529]
[1765521310650,0.487,3258.0,3257.8,0.4736]
[1765521312547,0.487,3258.0,3257.8,3.54312528]
[1765521312717,1.1606,3257.9,3256.0,0.167]
[1765521312924,5.65471617,3257.5,3256.3,3.07094477]
[1765521313121,0.485,3257.4,3256.4,0.58047529]
[1765521313322,3.07002732,3257.3,3256.4,0.497]
[1765521313522,3.07002732,3257.3,3256.5,3.07078151]
[1765521313822,0.4602,3257.2,3256.5,6.14156302]
[1765521314144,0.4602,3257.2,3256.5,6.80541932]
[1765521314461,3.55493431,3257.4,3256.5,7.30241932]
[1765521314462,3.5549747,3257.4,3256.5,7.30241932]
[1765521314626,3.5549747,3257.4,3256.5,7.76514663]
[1765521314831,0.4602,3257.3,3256.5,7.76514663]
[1765521315136,0.4602,3257.3,3256.5,4.69436512]
[1765521315334,0.4602,3257.3,3256.6,1.3419935]
[1765521317350,3.55512157,3257.2,3256.6,4.41266553]
[1765521317751,3.55512157,3257.2,3256.6,1.3419935]
[1765521317951,0.4607,3257.1,3256.3,3.99049318]
[1765521318163,0.4607,3257.1,3256.5,3.07078126]
[1765521319274,0.485,3257.0,3256.5,3.07078126]
[1765521319476,0.485,3257.0,3256.4,3.07087581]
[1765521320572,3.55532682,3257.0,3256.4,3.52767581]
[1765521321375,0.485,3257.0,3256.4,3.52767581]
[1765521321785,0.485,3257.0,3256.5,1.16886421]
[1765521322068,0.485,3257.0,3256.5,1.62566421]
[1765521323086,0.485,3257.0,3256.6,3.07068721]
[1765521323364,0.485,3257.0,3256.6,3.52748721]
[1765521323544,0.9457,3257.0,3256.6,3.07068721]
[1765521324289,0.485,3257.0,3256.6,3.07068721]
[1765521324451,0.485,3257.0,3256.6,3.52748721]
[1765521325273,0.485,3257.0,3256.9,0.4581]
[1765521325977,3.06955614,3257.8,3256.9,0.9149]
[1765521326171,0.485,3257.7,3257.3,0.4581]
[1765521326353,0.9457,3257.7,3257.3,0.4581]
[1765521326766,0.4607,3257.6,3257.3,0.4581]
[1765521326975,0.9457,3257.7,3257.3,0.4581]
[1765521327381,3.26100672,3257.9,3257.3,3.52807524]
[1765521327547,0.485,3257.8,3257.6,0.4581]
[1765521327746,0.485,3257.8,3257.3,3.52677524]
[1765521327947,0.4607,3257.8,3257.3,3.06997524]
[1765521328151,0.485,3257.7,3257.3,6.14000256]
[1765521328361,0.485,3257.6,3257.3,3.52677524]
[1765521328763,0.485,3257.6,3257.5,0.4581]
[1765521329163,0.485,3257.6,3257.5,0.9149]
[1765521329584,0.485,3257.6,3257.5,3.52793883]
[1765521330083,0.485,3257.6,3257.5,0.4581]
[1765521330979,3.26246264,3257.9,3257.5,0.4581]
[1765521331170,0.4588,3257.6,3257.1,0.167]
[1765521331357,0.4588,3257.6,3257.1,3.07018698]
[1765521331555,0.4607,3257.5,3256.9,6.14078087]
[1765521331774,0.485,3257.4,3256.9,6.14078087]
[1765521332177,0.485,3257.4,3256.9,6.59758087]
[1765521332486,0.485,3257.4,3256.9,6.86351169]
[1765521332782,0.485,3257.4,3257.3,0.4581]
[1765521333759,0.485,3257.4,3257.3,3.52812732]
[1765521334099,0.485,3257.4,3257.3,0.4581]
[1765521337990,0.485,3257.4,3257.3,3.98492732]
[1765521338784,0.485,3257.4,3257.3,3.52812732]
[1765521338988,0.002,3258.0,3257.3,13.4164885]
[1765521339210,0.485,3257.9,3257.8,0.4581]
[1765521340089,0.485,3257.9,3257.8,0.9149]
[1765521340283,0.002,3258.0,3257.9,3.06946192]
[1765521340599,0.002,3258.0,3257.9,3.98436192]
[1765521341176,0.002,3258.0,3257.9,0.4581]
[1765521342391,0.002,3258.0,3257.9,3.52756192]
[1765521342593,0.002,3258.0,3257.9,4.23354253]
[1765521342800,0.002,3258.0,3257.9,5.15306984]
[1765521343998,0.002,3258.0,3257.9,10.80849787]
[1765521351378,0.002,3258.0,3257.9,5.15306984]
[1765521353687,0.002,3258.0,3257.9,4.69626984]
[1765521355709,0.002,3258.0,3257.9,5.16916984]
[1765521360792,0.002,3258.0,3257.9,4.72696445]
[1765521360988,0.002,3258.0,3257.9,6.15514913]
[1765521361486,0.002,3258.0,3257.9,6.18584374]
[1765521361693,0.002,3258.0,3257.9,21.83493974]
[1765521361894,0.002,3258.0,3257.9,21.80424513]
[1765521363295,0.002,3258.0,3257.9,27.45967316]
[1765521363625,0.002,3258.0,3257.9,41.81057716]
[1765521364045,0.002,3258.0,3257.9,36.15514913]
[1765521364336,0.002,3258.0,3257.9,41.81057716]
[1765521365398,0.002,3258.0,3257.9,41.93339691]
[1765521366825,0.002,3258.3,3258.2,0.98597929]
[1765521367024,0.002,3258.3,3258.2,41.31116457]
[1765521367229,0.002,3258.3,3258.2,41.78406457]
[1765521367932,0.002,3258.3,3258.2,36.86648687]
[1765521368131,0.002,3258.3,3258.2,34.17907187]
[1765521368627,0.002,3258.3,3258.2,28.50263287]
[1765521368829,0.002,3258.3,3258.2,27.49063287]
[1765521370046,0.002,3258.3,3258.2,29.85007416]
[1765521370549,0.002,3258.3,3258.2,28.94188516]
[1765521370950,0.002,3258.3,3258.2,33.15160416]
[1765521371326,0.002,3258.3,3258.2,32.63437516]
[1765521371945,0.002,3258.3,3258.2,14.84672016]
[1765521372149,0.002,3258.3,3258.2,30.46897516]
[1765521373025,0.002,3258.3,3258.2,14.84672016]
[1765521373323,0.002,3258.3,3258.2,30.46746116]
[1765521374128,0.002,3258.3,3258.2,30.43561716]
[1765521374324,0.002,3258.3,3258.2,28.93165416]
[1765521375052,0.002,3258.3,3258.2,30.64049116]
[1765521375251,0.002,3258.3,3258.2,30.08929116]
[1765521375653,0.002,3258.3,3258.2,30.08906338]
[1765521376050,0.002,3258.3,3258.2,33.48906338]
[1765521376224,0.002,3258.3,3258.2,31.08906338]
[1765521377147,0.002,3258.3,3258.2,34.55520038]
[1765521378133,0.002,3258.3,3258.2,34.53310238]
[1765521378321,0.002,3258.3,3258.2,33.53098238]
[1765521378653,0.002,3258.3,3258.2,31.53098238]
[1765521380256,0.002,3258.3,3258.2,14.84649238]
[1765521380440,0.002,3258.3,3258.2,31.49970838]
[1765521381330,0.002,3258.3,3258.2,34.19455638]
[1765521381531,0.002,3258.3,3258.2,33.19455638]
[1765521381928,0.002,3258.3,3258.2,32.63050638]
[1765521382344,0.002,3258.3,3258.2,14.84649238]
[1765521382650,0.002,3258.3,3258.2,33.21829738]
[1765521382855,0.002,3258.3,3258.2,31.21829738]
[1765521383157,0.002,3258.3,3258.2,29.75216038]
[1765521384134,0.002,3258.3,3258.2,29.53704238]
[1765521384559,0.002,3258.3,3258.2,22.64076384]
[1765521384763,0.002,3258.3,3258.2,18.21338684]
[1765521385365,0.002,3258.3,3258.2,13.49943384]
[1765521385565,0.9384,3258.3,3258.2,7.17011184]
[1765521385869,0.9384,3258.3,3258.2,4.42241061]
[1765521386066,0.9384,3258.3,3258.2,5.0028859]
[1765521387448,0.002,3258.3,3258.2,5.4725859]
[1765521387650,0.002,3258.3,3258.2,5.50327769]
[1765521387850,0.002,3258.3,3258.2,5.4725859]
[1765521388049,0.002,3258.3,3258.2,6.93771947]
[1765521388642,0.002,3258.3,3258.2,7.39851947]
[1765521389275,0.002,3258.3,3258.2,6.93771947]
[1765521389471,0.4685,3258.3,3258.2,2.50833617]
[1765521389672,0.4685,3258.3,3257.0,3.85717088]
[1765521389673,6.58707654,3258.3,3257.7,0.12282918]
[1765521389875,0.6519,3257.8,3257.7,0.12282918]
[1765521390177,0.6519,3257.8,3257.3,3.06999714]
[1765521390477,0.3418,3257.4,3257.3,3.06999714]
[1765521390854,0.8117,3257.4,3257.3,3.06999714]
[1765521391367,0.8117,3257.4,3256.8,9.21149592]
[1765521391567,0.4653,3257.2,3256.9,1.97101725]
[1765521391771,0.4653,3257.2,3256.9,2.55149254]
[1765521391980,0.9352,3257.2,3256.9,2.55149254]
[1765521392354,0.9352,3257.2,3256.9,1.97101725]
[1765521392679,0.9352,3257.2,3256.9,2.55149254]
[1765521392977,0.4699,3257.1,3257.0,1.80304687]
[1765521393347,0.9364,3257.1,3257.0,1.80304687]
[1765521395250,0.9364,3257.1,3257.0,4.87335697]
[1765521395854,0.9364,3257.1,3257.0,3.65078539]
[1765521403092,0.4665,3257.1,3257.0,3.65078539]
[1765521405379,0.4608,3257.5,3257.0,10.26740559]
[1765521406100,0.494,3257.1,3257.0,3.65078539]
[1765521406621,0.9548,3257.1,3257.0,3.65078539]
[1765521406770,0.9548,3257.1,3257.0,4.66178889]
[1765521407818,0.9548,3257.1,3257.0,5.14678889]
[1765521409383,0.9548,3257.1,3257.0,4.66178889]
[1765521409588,0.9548,3257.1,3257.0,4.13578539]
[1765521411308,0.4608,3257.4,3257.0,4.13578539]
[1765521411595,0.4608,3257.4,3257.0,10.27640559]
[1765521412995,0.1854,3257.8,3257.0,10.27640559]
[1765521413301,0.4608,3257.4,3257.0,10.27640559]
[1765521413602,0.4608,3257.4,3257.0,11.39906888]
[1765521414288,0.1854,3257.8,3257.0,11.39906888]
[1765521414486,0.4608,3257.7,3257.0,11.39906888]
[1765521415792,0.4608,3257.7,3257.0,8.32875878]
[1765521415989,0.494,3257.1,3257.0,5.25844868]
[1765521416297,0.494,3257.1,3257.0,3.5553101]
[1765521416602,0.9548,3257.1,3257.0,3.5553101]
[1765521418185,0.494,3257.1,3257.0,3.0703101]
[1765521418577,0.494,3257.1,3257.0,3.5553101]
[1765521418804,0.494,3257.1,3257.0,4.26415413]
[1765521419403,0.1854,3257.8,3257.0,7.81046423]
[1765521419704,0.4608,3257.5,3257.0,7.1016202]
[1765521420412,0.4608,3257.5,3257.0,10.1719303]
[1765521421177,0.4608,3257.5,3257.1,0.58047529]
[1765521421396,0.4608,3257.5,3257.2,6.14024314]
[1765521421780,0.494,3257.3,3257.2,3.55512157]
[1765521422002,0.494,3257.3,3257.2,4.52468618]
[1765521422605,0.494,3257.3,3257.2,4.03968618]
[1765521422806,0.4608,3257.7,3257.2,8.07080775]
[1765521423105,0.4608,3257.7,3257.2,11.14092932]
[1765521423598,0.4608,3257.7,3257.3,0.485]
[1765521423801,0.4608,3257.7,3257.3,1.61579293]
[1765521425509,0.4608,3257.7,3257.4,6.13986614]
[1765521425912,0.494,3257.5,3257.4,3.06993307]
[1765521428982,0.9548,3257.5,3257.4,3.06993307]
[1765521429192,0.494,3257.5,3257.4,3.06993307]
[1765521429386,0.494,3257.5,3257.4,3.84550824]
[1765521429591,0.1854,3257.8,3257.4,7.39144131]
[1765521429912,0.4608,3257.7,3257.4,7.39144131]
[1765521430409,0.1854,3257.8,3257.4,7.39144131]
[1765521430622,0.6462,3257.8,3257.4,7.39144131]
[1765521430992,0.4608,3257.7,3257.4,7.39144131]
[1765521431308,0.494,3257.5,3257.4,3.84550824]
[1765521431500,0.494,3257.5,3257.4,3.06993307]
[1765521437483,0.4608,3257.7,3257.4,6.13986614]
[1765521439509,0.4608,3257.7,3257.4,3.06993307]
[1765521439510,0.4692,3257.5,3257.4,3.06993307]
[1765521441814,0.4608,3257.7,3257.4,6.13986614]
[1765521443426,0.4599,3257.5,3257.4,3.06993307]
[1765521443628,0.4599,3257.5,3257.4,4.34412019]
[1765521448640,0.1834,3258.0,3257.4,11.42308633]
[1765521448795,0.4801,3258.3,3257.6,6.13318648]
[1765521448993,0.4801,3258.3,3257.7,0.94772731]
[1765521449199,0.4801,3258.3,3257.7,1.74810142]
[1765521450430,0.4801,3258.3,3257.8,6.13911228]
[1765521451296,0.4801,3258.3,3257.8,6.59921228]
[1765521451723,0.4801,3258.3,3257.8,6.13911228]
[1765521454242,0.4801,3258.3,3257.8,9.20866842]